fUST/lending_fUST_20250523
["ID","MTS","AMOUNT","RATE_DAILY","PERIOD"]
[362073348,1747975833139,-500.0,0.00016888,2]
[362073349,1747975833148,-500.0,0.00016888,2]
[362073350,1747975833157,-500.0,0.00016888,2]
[362073351,1747975833166,-500.0,0.00016888,2]
[362073352,1747975833176,-500.0,0.00016888,2]
[362073353,1747975833185,-500.0,0.00016888,2]
[362073354,1747975833195,-500.0,0.00016888,2]
[362073355,1747975833204,-500.0,0.00016888,2]
[362073356,1747975833213,-500.0,0.00016888,2]
[362073357,1747975833222,-500.0,0.00016888,2]
[362073358,1747975833232,-500.0,0.00016888,2]
[362073359,1747975833241,-500.0,0.00016888,2]
[362073360,1747975833251,-500.0,0.00016888,2]
[362073361,1747975833260,-500.0,0.00016888,2]
[362073362,1747975833269,-500.0,0.00016888,2]
[362073363,1747975833279,-500.0,0.00016888,2]
[362073364,1747975833289,-500.0,0.00016888,2]
[362073365,1747975833298,-500.0,0.00016888,2]
[362073366,1747975833308,-500.0,0.00016888,2]
[362073367,1747975833318,-500.0,0.00016888,2]
[362073368,1747975833327,-500.0,0.00016888,2]
[362073369,1747975833336,-500.0,0.00016888,2]
[362073370,1747975833346,-500.0,0.00016888,2]
[362073371,1747975833355,-550.61185689,0.00016888,2]
[362073372,1747975833366,-500.0,0.00016888,2]
[362073373,1747975833375,-500.0,0.00016888,2]
[362073374,1747975833384,-646.77972586,0.00016888,2]
[362073375,1747975833394,-500.0,0.00016888,2]
[362073376,1747975833403,-500.0,0.00016888,2]
[362073377,1747975833413,-600.0,0.00016888,2]
[362073378,1747975833422,-500.0,0.00016888,2]
[362073379,1747975833432,-500.0,0.00016888,2]
[362073380,1747975833442,-500.0,0.00016888,2]
[362073381,1747975833453,-500.0,0.00016888,2]
[362073382,1747975833463,-500.0,0.00016888,2]
[362073383,1747975833472,-182.97552509,0.00016888,2]
[362073384,1747975833481,-1376.17042892,0.00016889,2]
[362073385,1747975833491,-300.0,0.00016896,2]
[362073386,1747975833500,-500.0,0.00016897,2]
[362073387,1747975833510,-430.0,0.00016897,2]
[362073388,1747975833519,-1092.0,0.00016897,2]
[362073389,1747975833529,-430.0,0.00016897,2]
[362073390,1747975833538,-430.0,0.00016897,2]
[362073391,1747975833548,-2139.84,0.00016897,2]
[362073392,1747975833559,-430.0,0.00016897,2]
[362073393,1747975833576,-430.0,0.00016897,2]
[362073394,1747975833593,-430.0,0.00016897,2]
[362073395,1747975833603,-493.14,0.00016897,2]
[362073396,1747975833614,-110646.29786653,0.00016898,2]
[362073397,1747975833623,-152.480138,0.00016898,2]
[362073398,1747975833633,-151.0,0.00016898,2]
[362073399,1747975833642,-151.0,0.00016898,2]
[362073400,1747975833655,-500.0,0.00016899,2]
[362073401,1747975833673,-430.0,0.00016899,2]
[362073402,1747975833683,-430.0,0.00016899,2]
[362073403,1747975833692,-440.92896206,0.00016899,2]
[362073404,1747975833701,-430.0,0.00016899,2]
[362073405,1747975833712,-430.0,0.00016899,2]
[362073406,1747975833722,-433.8057991,0.00016899,2]
[362073407,1747975833731,-430.0,0.00016899,2]
[362073408,1747975833741,-430.44429193,0.00016899,2]
[362073409,1747975833754,-319.50833407,0.00016899,2]
[362073410,1747975833764,-508.17001046,0.00016899,2]
[362073411,1747975833774,-441.01280067,0.00016899,2]
[362073412,1747975833785,-433.58213782,0.00016899,2]
[362073413,1747975833795,-435.35949585,0.00016899,2]
[362073414,1747975833806,-430.0,0.00016899,2]
[362073415,1747975833817,-437.27797192,0.00016899,2]
[362073416,1747975833827,-431.41882331,0.00016899,2]
[362073417,1747975833837,-431.96423174,0.00016899,2]
[362073418,1747975833846,-430.0,0.00016899,2]
[362073419,1747975833856,-436.30074748,0.00016899,2]
[362073420,1747975833865,-345.42772589,0.00016899,2]
[362073421,1747975833876,-433.53682736,0.00016899,2]
[362073422,1747975833886,-374.36604607,0.00016899,2]
[362073423,1747975833896,-431.30265235,0.00016899,2]
[362073424,1747975833906,-436.37251104,0.00016899,2]
[362073425,1747975833915,-430.0,0.00016899,2]
[362073426,1747975833925,-430.25286134,0.00016899,2]
[362073427,1747975833935,-434.59844957,0.00016899,2]
[362073428,1747975833944,-432.06707585,0.00016899,2]
[362073429,1747975833953,-430.0,0.00016899,2]
[362073430,1747975833963,-401.18174665,0.00016899,2]
[362073431,1747975833973,-432.05653035,0.00016899,2]
[362073432,1747975833982,-438.2577248,0.00016899,2]
[362073433,1747975833991,-442.31141585,0.00016899,2]
[362073434,1747975834001,-430.0,0.00016899,2]
[362073435,1747975834010,-430.21749279,0.00016899,2]
[362073436,1747975834019,-430.0,0.00016899,2]
[362073437,1747975834029,-556.00428834,0.00016899,2]
[362073438,1747975834039,-411.72431226,0.00016899,2]
[362073439,1747975834049,-433.71637174,0.00016899,2]
[362073440,1747975834061,-430.0,0.00016899,2]
[362073441,1747975834071,-510.96654397,0.00016899,2]
[362073442,1747975834080,-430.0,0.00016899,2]
[362073443,1747975834090,-430.0,0.00016899,2]
[362073444,1747975834100,-506.0603917,0.00016899,2]
[362073445,1747975834109,-502.45144889,0.00016899,2]
[362073446,1747975834119,-430.0,0.00016899,2]
[362073447,1747975834128,-438.12513825,0.00016899,2]
[362073448,1747975834139,-430.0,0.00016899,2]
[362073449,1747975834148,-430.0,0.00016899,2]
[362073450,1747975834158,-430.0,0.00016899,2]
[362073451,1747975834167,-435.25671804,0.00016899,2]
[362073452,1747975834177,-430.0,0.00016899,2]
[362073453,1747975834187,-430.0,0.00016899,2]
[362073454,1747975834196,-430.0,0.00016899,2]
[362073455,1747975834206,-442.82730787,0.00016899,2]
[362073456,1747975834216,-434.1577575,0.00016899,2]
[362073457,1747975834225,-430.0,0.00016899,2]
[362073458,1747975834235,-354.44294857,0.00016899,2]
[362073459,1747975834244,-435.80579512,0.00016899,2]
[362073460,1747975834253,-437.27504413,0.00016899,2]
[362073461,1747975834263,-436.58836606,0.00016899,2]
[362073462,1747975834273,-430.70600901,0.00016899,2]
[362073463,1747975834283,-344.57989497,0.00016899,2]
[362073464,1747975834292,-437.19838937,0.00016899,2]
[362073465,1747975834302,-501.68333396,0.00016899,2]
[362073466,1747975834313,-430.0,0.00016899,2]
[362073467,1747975834322,-440.52831932,0.00016899,2]
[362073468,1747975834332,-427.35260359,0.00016899,2]
[362073469,1747975834342,-504.99154871,0.00016899,2]
[362073470,1747975834351,-433.60790523,0.00016899,2]
[362073471,1747975834361,-502.59792528,0.00016899,2]
[362073472,1747975834371,-431.0867987,0.00016899,2]
[362073473,1747975834380,-434.23477317,0.00016899,2]
[362073474,1747975834390,-432.44591974,0.00016899,2]
[362073475,1747975834400,-392.72476733,0.00016899,2]
[362073476,1747975834410,-430.0,0.00016899,2]
[362073477,1747975834419,-431.1489242,0.00016899,2]
[362073478,1747975834428,-433.77531622,0.00016899,2]
[362073479,1747975834438,-217.92665772,0.00016899,2]
[362073480,1747975834447,-508.88312945,0.00016899,2]
[362073481,1747975834457,-362.15801698,0.00016899,2]
[362073482,1747975834467,-434.24331812,0.00016899,2]
[362073483,1747975834477,-432.6141993,0.00016899,2]
[362073484,1747975834487,-546.7536063,0.00016899,2]
[362073485,1747975834498,-430.0,0.00016899,2]
[362073486,1747975834507,-49310.3211024,0.000169,2]
[362073487,1747975834517,-151.0,0.000169,2]
[362073488,1747975834527,-151.0,0.000169,2]
[362073489,1747975834537,-151.0,0.000169,2]
[362073490,1747975834547,-293.122698,0.000169,2]
[362073491,1747975834557,-200.735121,0.000169,2]
[362073492,1747975834567,-200.735121,0.000169,2]
[362073493,1747975834577,-287.251406,0.000169,2]
[362073494,1747975834587,-151.0,0.000169,2]
[362073495,1747975834596,-287.251406,0.000169,2]
[362073496,1747975834606,-151.0,0.000169,2]
[362073497,1747975834616,-653.48332529,0.00016908,2]
[362073498,1747975834626,-500.0,0.00016973,2]
[362073499,1747975834636,-500.20394628,0.00016973,2]
[362073500,1747975834647,-500.0,0.00016973,2]
[362073501,1747975834657,-501.53692737,0.00016973,2]
[362073502,1747975834666,-500.0,0.00016973,2]
[362073503,1747975834676,-500.0,0.00016973,2]
[362073504,1747975834685,-500.0,0.00016973,2]
[362073505,1747975834695,-502.5039933,0.00016973,2]
[362073506,1747975834704,-500.0,0.00016973,2]
[362073507,1747975834714,-500.0,0.00016973,2]
[362073508,1747975834724,-500.0,0.00016973,2]
[362073509,1747975834734,-500.0,0.00016973,2]
[362073510,1747975834745,-500.0,0.00016973,2]
[362073511,1747975834756,-500.0,0.00016973,2]
[362073512,1747975834765,-500.0,0.00016973,2]
[362073513,1747975834774,-501.4444815,0.00016973,2]
[362073514,1747975834783,-430.0,0.00016986,2]
[362073515,1747975834794,-430.0,0.00016986,2]
[362073516,1747975834804,-479.79,0.00016986,2]
[362073517,1747975834814,-925.59,0.00016986,2]
[362073518,1747975834824,-430.0,0.00016986,2]
[362073519,1747975834834,-430.0,0.00016986,2]
[362073520,1747975834843,-430.0,0.00016986,2]
[362073521,1747975834853,-624.28,0.00016986,2]
[362073522,1747975834862,-1415.32,0.00016986,2]
[362073523,1747975834871,-430.0,0.00016988,2]
[362073524,1747975834881,-430.0,0.00016988,2]
[362073525,1747975834891,-430.0,0.00016988,2]
[362073526,1747975834900,-430.0,0.00016988,2]
[362073527,1747975834909,-430.0,0.00016988,2]
[362073528,1747975834919,-430.0,0.00016988,2]
[362073529,1747975834928,-430.0,0.00016988,2]
[362073530,1747975834937,-430.0,0.00016988,2]
[362073531,1747975834946,-430.0,0.00016988,2]
[362073532,1747975834956,-430.0,0.00016988,2]
[362073533,1747975834966,-430.0,0.00016988,2]
[362073534,1747975834975,-430.0,0.00016988,2]
[362073535,1747975834985,-430.0,0.00016988,2]
[362073536,1747975834995,-430.0,0.00016988,2]
[362073537,1747975835004,-430.0,0.00016988,2]
[362073538,1747975835014,-430.0,0.00016988,2]
[362073539,1747975835023,-430.0,0.00016988,2]
[362073540,1747975835033,-430.0,0.00016988,2]
[362073541,1747975835043,-1656.93,0.00016988,2]
[362073542,1747975835052,-430.0,0.00016988,2]
[362073543,1747975835063,-430.0,0.00016988,2]
[362073544,1747975835072,-430.0,0.00016988,2]
[362073545,1747975835082,-430.0,0.00016988,2]
[362073546,1747975835092,-430.0,0.00016988,2]
[362073547,1747975835101,-430.0,0.00016988,2]
[362073548,1747975835111,-430.0,0.00016988,2]
[362073549,1747975835120,-430.0,0.00016988,2]
[362073550,1747975835130,-430.0,0.00016989,2]
[362073551,1747975835139,-430.0,0.00016989,2]
[362073552,1747975835148,-430.0,0.00016989,2]
[362073553,1747975835158,-430.0,0.00016989,2]
[362073554,1747975835167,-430.0,0.00016989,2]
[362073555,1747975835177,-430.0,0.00016989,2]
[362073556,1747975835186,-430.0,0.00016989,2]
[362073557,1747975835196,-430.0,0.00016989,2]
[362073558,1747975835206,-426.23754054,0.00016989,2]
[362073559,1747975835215,-441.94390668,0.00016989,2]
[362073560,1747975835225,-467.08467851,0.00016989,2]
[362073561,1747975835235,-457.51912785,0.00016989,2]
[362073562,1747975835244,-430.0,0.00016989,2]
[362073563,1747975835253,-372.02929743,0.00016989,2]
[362073564,1747975835263,-316.32705389,0.00016989,2]
[362073565,1747975835272,-356.85291492,0.00016989,2]
[362073566,1747975835282,-430.0,0.00016989,2]
[362073567,1747975835292,-430.0,0.00016989,2]
[362073568,1747975835302,-440.97754189,0.00016989,2]
[362073569,1747975835315,-452.47306942,0.00016989,2]
[362073570,1747975835325,-430.0,0.00016989,2]
[362073571,1747975835335,-430.0,0.00016989,2]
[362073572,1747975835345,-430.0,0.00016989,2]
[362073573,1747975835355,-433.78527729,0.00016989,2]
[362073574,1747975835364,-430.0,0.00016989,2]
[362073575,1747975835373,-675.85,0.00016989,2]
[362073576,1747975835382,-457.4470544,0.00016989,2]
[362073577,1747975835392,-430.0,0.00016989,2]
[362073578,1747975835402,-441.11416519,0.00016989,2]
[362073579,1747975835411,-436.3411921,0.00016989,2]
[362073580,1747975835421,-430.0,0.00016989,2]
[362073581,1747975835430,-197.89,0.00016989,2]
[362073582,1747975835440,-151.0,0.00016989,2]
[362073583,1747975835450,-430.0,0.00016989,2]
[362073584,1747975835461,-430.0,0.00016989,2]
[362073585,1747975835597,-430.0,0.00016989,2]
[362073586,1747975835608,-212.48480548,0.00016989,3]
[362073587,1747975835618,-430.0,0.00016989,2]
[362073588,1747975835628,-251.23500539,0.00016989,2]
[362073589,1747975835640,-151.0,0.00016989,2]
[362073590,1747975835650,-478.41,0.00016989,2]
[362073591,1747975835659,-151.64053709,0.00016989,3]
[362073592,1747975835668,-151.31143652,0.00016989,3]
[362073593,1747975835677,-151.84196463,0.00016989,3]
[362073594,1747975835687,-430.0,0.00016989,2]
[362073595,1747975835696,-151.0,0.00016989,2]
[362073596,1747975835705,-1032.14,0.00016989,2]
[362073597,1747975835715,-430.0,0.00016989,2]
[362073598,1747975835725,-430.0,0.00016989,2]
[362073599,1747975835734,-430.0,0.00016989,2]
[362073600,1747975835746,-430.0,0.00016989,2]
[362073601,1747975835756,-430.0,0.00016989,2]
[362073602,1747975835765,-430.0,0.00016989,2]
[362073603,1747975835775,-12647.66147447,0.00016989,3]
[362073604,1747975835785,-430.0,0.00016989,2]
[362073605,1747975835796,-616.62,0.00016989,2]
[362073606,1747975835807,-430.0,0.00016989,2]
[362073607,1747975835818,-430.0,0.00016989,2]
[362073608,1747975835828,-430.0,0.00016989,2]
[362073609,1747975835839,-151.0,0.00016989,3]
[362073610,1747975835851,-151.0,0.00016989,3]
[362073611,1747975835863,-151.0,0.00016989,3]
[362073612,1747975835875,-521.02378249,0.00016989,2]
[362073613,1747975835890,-430.0,0.00016989,2]
[362073614,1747975835907,-430.0,0.00016989,2]
[362073615,1747975835921,-648.92,0.00016989,2]
[362073616,1747975835932,-340.0,0.00016989,2]
[362073617,1747975835946,-528.37,0.00016989,2]
[362073618,1747975835957,-430.0,0.00016989,2]
[362073619,1747975835966,-430.0,0.00016989,2]
[362073620,1747975835976,-430.0,0.00016989,2]
[362073621,1747975835985,-430.0,0.00016989,2]
[362073622,1747975835994,-430.0,0.00016989,2]
[362073623,1747975836003,-752.58,0.00016989,2]
[362073624,1747975836013,-430.0,0.00016989,2]
[362073625,1747975836022,-1013.01,0.00016989,2]
[362073626,1747975836031,-151.0,0.00016989,3]
[362073627,1747975836041,-151.0,0.00016989,3]
[362073628,1747975836050,-430.0,0.00016989,2]
[362073629,1747975836060,-430.0,0.00016989,2]
[362073630,1747975836069,-430.0,0.00016989,2]
[362073631,1747975836078,-430.0,0.00016989,2]
[362073632,1747975836087,-430.0,0.00016989,2]
[362073633,1747975836097,-200.735121,0.00016989,2]
[362073634,1747975836107,-507.04,0.00016989,2]
[362073635,1747975836116,-430.0,0.00016989,2]
[362073636,1747975836126,-200.735121,0.00016989,2]
[362073637,1747975836135,-287.251406,0.00016989,2]
[362073638,1747975836145,-151.0,0.00016989,2]
[362073639,1747975836154,-430.0,0.00016989,2]
[362073640,1747975836163,-287.251406,0.00016989,2]
[362073641,1747975836174,-430.0,0.00016989,2]
[362073642,1747975836184,-200.76823353,0.00016989,2]
[362073643,1747975836193,-151.0,0.00016989,2]
[362073644,1747975836202,-54210.5335,0.0001699,2]
[362073645,1747975836211,-262.792804,0.0001699,2]
[362073646,1747975836220,-151.0,0.0001699,2]
[362073647,1747975836229,-151.0,0.0001699,2]
[362073648,1747975836238,-151.0,0.0001699,2]
[362073649,1747975836248,-151.0,0.0001699,2]
[362073650,1747975836257,-151.0,0.0001699,2]
[362073651,1747975836266,-151.0,0.0001699,2]
[362073652,1747975836276,-200.735121,0.0001699,2]
[362073653,1747975836285,-200.735121,0.0001699,2]
[362073654,1747975836294,-287.251406,0.0001699,2]
[362073655,1747975836304,-213.166161,0.0001699,2]
[362073656,1747975836315,-287.251406,0.0001699,2]
[362073657,1747975836325,-151.0,0.0001699,2]
[362073658,1747975836335,-450.0,0.00016999,2]
[362073659,1747975836344,-403.21020939,0.00016999,2]
[362073660,1747975836353,-430.0,0.00016999,2]
[362073662,1747975836362,-430.0,0.00016999,2]
[362073663,1747975836371,-433.08998785,0.00016999,2]
[362073664,1747975836381,-505.63883174,0.00016999,2]
[362073665,1747975836390,-314.5,0.00016999,2]
[362073666,1747975836399,-430.0,0.00016999,2]
[362073667,1747975836409,-430.0,0.00016999,2]
[362073668,1747975836419,-430.0,0.00016999,2]
[362073669,1747975836428,-430.0,0.00016999,2]
[362073670,1747975836437,-430.0,0.00016999,2]
[362073671,1747975836448,-430.0,0.00016999,2]
[362073672,1747975836457,-430.0,0.00016999,2]
[362073673,1747975836467,-520.0,0.00016999,2]
[362073674,1747975836476,-430.0,0.00016999,2]
[362073675,1747975836486,-304.43395515,0.00016999,2]
[362073676,1747975836495,-430.0,0.00016999,2]
[362073677,1747975836505,-430.0,0.00016999,2]
[362073678,1747975836515,-430.0,0.00016999,2]
[362073679,1747975836524,-430.0,0.00016999,2]
[362073680,1747975836534,-430.0,0.00016999,2]
[362073681,1747975836545,-430.0,0.00016999,2]
[362073682,1747975836559,-430.0,0.00016999,2]
[362073683,1747975836572,-430.0,0.00016999,2]
[362073684,1747975836582,-430.0,0.00016999,2]
[362073685,1747975836591,-260.41932301,0.00016999,2]
[362073686,1747975836601,-372.26287483,0.00016999,2]
[362073687,1747975836610,-430.0,0.00016999,2]
[362073688,1747975836621,-430.0,0.00016999,2]
[362073689,1747975836631,-430.0,0.00016999,2]
[362073690,1747975836641,-500.0,0.00016999,2]
[362073691,1747975836651,-430.0,0.00016999,2]
[362073692,1747975836660,-430.0,0.00016999,2]
[362073693,1747975836670,-430.0,0.00016999,2]
[362073694,1747975836679,-306.12086017,0.00016999,2]
[362073695,1747975836688,-430.0,0.00016999,2]
[362073696,1747975836698,-244.32911531,0.00016999,2]
[362073697,1747975836708,-430.0,0.00016999,2]
[362073698,1747975836717,-430.0,0.00016999,2]
[362073699,1747975836726,-430.0,0.00016999,2]
[362073700,1747975836738,-430.0,0.00016999,2]
[362073701,1747975836750,-430.0,0.00016999,2]
[362073702,1747975836759,-430.0,0.00016999,2]
[362073703,1747975836768,-151.0,0.00016999,2]
[362073704,1747975836777,-151.592682,0.00016999,2]
[362073705,1747975836786,-151.0,0.00016999,2]
[362073706,1747975836796,-151.0,0.00016999,2]
[362073707,1747975836808,-91484.19995268,0.00017,2]
[362073708,1747975836819,-14074.3001977,0.00017,2]
[362073709,1747975836829,-151.0,0.00017,2]
[362073710,1747975836839,-151.0,0.00017,2]
[362073711,1747975836848,-151.0,0.00017,2]
[362073712,1747975836857,-300.847112,0.00017,2]
[362073713,1747975836866,-151.0,0.00017,2]
[362073715,1747975836875,-151.0,0.00017,2]
[362073717,1747975836884,-151.0,0.00017,2]
[362073719,1747975836893,-164.346072,0.00017,2]
[362073721,1747975836902,-151.0,0.00017,2]
[362073723,1747975836911,-645.861742,0.00017,2]
[362073725,1747975836920,-645.861742,0.00017,2]
[362073726,1747975836929,-151.0,0.00017,2]
[362073728,1747975836938,-151.0,0.00017,2]
[362073729,1747975836948,-200.735121,0.00017,2]
[362073730,1747975836957,-151.0,0.00017,2]
[362073731,1747975836967,-200.735121,0.00017,2]
[362073732,1747975836976,-287.251406,0.00017,2]
[362073733,1747975836985,-287.251406,0.00017,2]
[362073734,1747975836994,-151.0,0.00017,2]
[362073735,1747975837003,-199.84735124,0.00017016,3]
[362073736,1747975837013,-200.52424089,0.00017016,3]
[362073737,1747975837022,-200.16110532,0.00017016,3]
[362073738,1747975837031,-151.0,0.00017016,3]
[362073739,1747975837040,-151.0,0.00017016,3]
[362073740,1747975837049,-153.43422411,0.00017044,3]
[362073741,1747975837059,-206.60689755,0.00017044,3]
[362073742,1747975837069,-160.0,0.00017061,2]
[362073743,1747975837078,-571.10374533,0.00017064,2]
[362073744,1747975837088,-500.0,0.00017158,2]
[362073745,1747975837097,-430.0,0.00017171,2]
[362073746,1747975837106,-1092.0,0.00017171,2]
[362073747,1747975837116,-430.0,0.00017171,2]
[362073748,1747975837125,-430.0,0.00017171,2]
[362073749,1747975837135,-2139.84,0.00017171,2]
[362073750,1747975837144,-430.0,0.00017171,2]
[362073751,1747975837156,-430.0,0.00017171,2]
[362073752,1747975837165,-430.0,0.00017171,2]
[362073753,1747975837174,-493.14,0.00017171,2]
[362073754,1747975837183,-593.78021639,0.00017173,2]
[362073755,1747975837193,-430.0,0.00017173,2]
[362073756,1747975837202,-430.0,0.00017173,2]
[362073757,1747975837211,-507.33298345,0.00017173,2]
[362073758,1747975837221,-430.0,0.00017173,2]
[362073759,1747975837230,-430.0,0.00017173,2]
[362073760,1747975837240,-444.60281565,0.00017173,2]
[362073761,1747975837250,-430.0,0.00017173,2]
[362073762,1747975837259,-430.0,0.00017173,2]
[362073763,1747975837268,-441.79670476,0.00017173,2]
[362073764,1747975837277,-430.0,0.00017173,2]
[362073765,1747975837287,-430.0,0.0001726,2]
[362073766,1747975837299,-430.0,0.0001726,2]
[362073767,1747975837311,-479.79,0.0001726,2]
[362073768,1747975837320,-925.59,0.0001726,2]
[362073769,1747975837329,-430.0,0.0001726,2]
[362073770,1747975837340,-430.0,0.0001726,2]
[362073771,1747975837350,-430.0,0.0001726,2]
[362073772,1747975837359,-624.28,0.0001726,2]
[362073773,1747975837370,-1415.32,0.0001726,2]
[362073774,1747975837381,-430.0,0.00017262,2]
[362073775,1747975837392,-430.0,0.00017262,2]
[362073776,1747975837402,-551.28,0.00017262,2]
[362073777,1747975837411,-430.0,0.00017262,2]
[362073778,1747975837422,-430.0,0.00017262,2]
[362073779,1747975837432,-430.0,0.00017262,2]
[362073780,1747975837443,-430.0,0.00017262,2]
[362073781,1747975837453,-430.0,0.00017262,2]
[362073782,1747975837462,-430.0,0.00017262,2]
[362073783,1747975837475,-430.0,0.00017262,2]
[362073784,1747975837485,-430.0,0.00017262,2]
[362073785,1747975837494,-430.0,0.00017262,2]
[362073786,1747975837503,-430.0,0.00017262,2]
[362073787,1747975837512,-430.0,0.00017262,2]
[362073788,1747975837522,-430.0,0.00017262,2]
[362073789,1747975837532,-430.0,0.00017262,2]
[362073790,1747975837541,-430.0,0.00017262,2]
[362073791,1747975837551,-1656.93,0.00017262,2]
[362073792,1747975837563,-430.0,0.00017262,2]
[362073794,1747975837572,-430.0,0.00017262,2]
[362073795,1747975837581,-430.0,0.00017262,2]
[362073797,1747975837591,-430.0,0.00017262,2]
[362073798,1747975837600,-430.0,0.00017262,2]
[362073799,1747975837609,-430.0,0.00017262,2]
[362073800,1747975837618,-430.0,0.00017262,2]
[362073801,1747975837627,-430.0,0.00017262,2]
[362073802,1747975837637,-152.645022,0.00017262,2]
[362073803,1747975837646,-448.06695278,0.00017263,2]
[362073804,1747975837655,-430.0,0.00017263,2]
[362073805,1747975837665,-430.0,0.00017263,2]
[362073806,1747975837675,-430.0,0.00017263,2]
[362073808,1747975837684,-430.0,0.00017263,2]
[362073809,1747975837693,-205.53367335,0.00017263,2]
[362073810,1747975837703,-472.40176926,0.00017263,2]
[362073811,1747975837712,-430.0,0.00017263,2]
[362073813,1747975837721,-430.0,0.00017263,2]
[362073814,1747975837731,-430.0,0.00017263,2]
[362073816,1747975837741,-430.0,0.00017263,2]
[362073818,1747975837754,-430.0,0.00017263,2]
[362073819,1747975837763,-430.0,0.00017263,2]
[362073820,1747975837773,-430.0,0.00017263,2]
[362073821,1747975837782,-430.0,0.00017263,2]
[362073822,1747975837791,-675.85,0.00017263,2]
[362073823,1747975837802,-430.0,0.00017263,2]
[362073824,1747975837813,-430.0,0.00017263,2]
[362073825,1747975837822,-210.51631516,0.00017263,2]
[362073826,1747975837831,-430.0,0.00017263,2]
[362073827,1747975837840,-430.0,0.00017263,2]
[362073829,1747975837850,-441.8650418,0.00017263,2]
[362073831,1747975837859,-478.41,0.00017263,2]
[362073832,1747975837868,-430.0,0.00017263,2]
[362073834,1747975837877,-186.982174,0.00017263,2]
[362073836,1747975837886,-1032.14,0.00017263,2]
[362073837,1747975837895,-430.0,0.00017263,2]
[362073838,1747975837906,-430.0,0.00017263,2]
[362073839,1747975837915,-407.08089917,0.00017263,2]
[362073840,1747975837924,-430.0,0.00017263,2]
[362073841,1747975837933,-430.0,0.00017263,2]
[362073842,1747975837942,-430.0,0.00017263,2]
[362073843,1747975837952,-430.0,0.00017263,2]
[362073845,1747975837961,-616.62,0.00017263,2]
[362073846,1747975837970,-430.0,0.00017263,2]
[362073847,1747975837979,-430.0,0.00017263,2]
[362073848,1747975837989,-430.0,0.00017263,2]
[362073849,1747975837998,-430.0,0.00017263,2]
[362073850,1747975838007,-648.92,0.00017263,2]
[362073852,1747975838017,-528.37,0.00017263,2]
[362073854,1747975838026,-430.0,0.00017263,2]
[362073855,1747975838036,-442.67907662,0.00017263,2]
[362073856,1747975838046,-430.0,0.00017263,2]
[362073857,1747975838055,-430.0,0.00017263,2]
[362073858,1747975838067,-430.0,0.00017263,2]
[362073859,1747975838076,-752.58,0.00017263,2]
[362073860,1747975838086,-438.87063163,0.00017263,2]
[362073861,1747975838095,-1013.01,0.00017263,2]
[362073863,1747975838104,-430.0,0.00017263,2]
[362073865,1747975838238,-430.0,0.00017263,2]
[362073867,1747975838247,-430.0,0.00017263,2]
[362073868,1747975838257,-430.0,0.00017263,2]
[362073869,1747975838267,-440.72351575,0.00017263,2]
[362073870,1747975838276,-507.04,0.00017263,2]
[362073871,1747975838285,-430.0,0.00017263,2]